Cogmind - Beta 15 @@@ ROGUE MODE // 2025.07.18 @ 10:48:50 Player: beans Result: Destroyed by ZJ-7PL(R) with Subdweller Beam Cannon Performance ------------- Evolutions (0) 0 Regions Visited (3) 600 Robots Destroyed (38) 190 Value Destroyed (704) 704 Prototype IDs (1) 20 Alien Tech Used (0) 0 Bonus (0) 0 TOTAL SCORE: 1514 Bonus ------- None Cogmind --------- Core Integrity 0/250 Matter 165/300 Energy 99/100 System Corruption 0% Temperature Cool (15) Movement Core (100) Ox1 Location -10/Subcaves Parts ------- > --- POWER (1) -------- (None) > --- PROPULSION (2) --- (None) > --- UTILITY (2) ------ (None) > --- WEAPON (2) ------- Medium Laser Assault Rifle > --- INVENTORY (5) ---- Medium Matter Pod (0) Light Assault Rifle Peak State ------------ > --- POWER ------------ Light Ion Engine > --- PROPULSION ------- Light Treads Light Treads > --- UTILITY ---------- Experimental Sensor Array > --- WEAPON ----------- Grenade Launcher Grenade Launcher > --- INVENTORY -------- Medium Matter Pod Assault Rifle Light Assault Rifle [Rating: 14] Favorites ----------- Power Light Ion Engine Engine Light Ion Engine Propulsion Light Treads Treads Light Treads Utility Experimental Sensor Array Device Experimental Sensor Array Protection Scrap Shield Weapon Grenade Launcher Energy Gun Medium Laser Ballistic Gun Assault Rifle Launcher Grenade Launcher Build | -11 -10 -10 -10 ------- Run | Yrd Mat Min Sub Slots Evolved . | . . . . Power . | . . . . Propulsion . | . . . . Utility . | . . . . Weapon . | . . . . Parts Attached 11 | 5 2 1 3 Power 1 | 1 . . . Engine 1 | 1 . . . Core . | . . . . Reactor . | . . . . Propulsion 2 | 2 . . . Treads 2 | 2 . . . Leg . | . . . . Wheel . | . . . . Hover . | . . . . Flight . | . . . . Utility 3 | . . 1 2 Device 2 | . . 1 1 Storage . | . . . . Processor . | . . . . Hackware . | . . . . Protection 1 | . . . 1 Artifact . | . . . . Weapon 5 | 2 2 . 1 Energy Gun 1 | . . . 1 Energy Cannon . | . . . . Ballistic Gun 2 | 2 . . . Ballistic Cannon . | . . . . Launcher 2 | . 2 . . Special Weapon . | . . . . Impact Weapon . | . . . . Slashing Weapon . | . . . . Piercing Weapon . | . . . . Special Melee Weapon . | . . . . Unidentified Prototypes 1 | . . 1 . Parts Lost 7 | . . 2 5 Power 1 | . . 1 . Propulsion 2 | . . . 2 Utility 2 | . . . 2 Weapon 2 | . . 1 1 Highest Loss Streak 3 | . . 2 3 To Critical Strikes . | . . . . Average Backups 2 | . 1 3 1 Power . | . . . . Propulsion . | . . . . Utility . | . . 1 1 Weapon 1 | . 1 2 . Tool/Special . | . . . . Unused Backups 2 | . . . 2 Power . | . . . . Propulsion . | . . . . Utility 2 | . . . 2 Weapon . | . . . . Tool/Special . | . . . . Average Slot Usage (%) 59 | . 71 76 36 Engine 6 | . 14 11 . Treads 17 | . 28 28 3 Device 8 | . . 10 6 Energy Gun 2 | . . . 4 Ballistic Gun 7 | . 11 . 15 Launcher 15 | . 16 25 3 Peak Build Rating 14 | 5 5 14 12 Average Rating 7 | 3 5 11 4 On Entrance 5 | . 5 5 12 Naked Turns . | . . . . Heaviest Build 21 | 6 9 10 21 Greatest Support 40 | 40 40 40 40 Greatest Overweight (x) 6 | . . . 6 Average Overweight (x) . | . . . 1 Largest Inventory Capacity 5 | 5 5 5 5 Average Capacity 5 | 5 5 5 5 Most Carried 5 | 5 3 4 5 Average Carried 2 | . 1 3 1 Final Capacity 5 | 5 5 5 5 Final Carried 3 | . 3 3 2 Class Distribution -------------------- 100% | Mutant Dominant Class ---------------- Mutant | -10/Materials Mutant | -10/Mines Mutant | -10/Subcaves Resources | -11 -10 -10 -10 ----------- Run | Yrd Mat Min Sub Matter Collected 786 | 188 101 382 115 Remotely . | . . . . Salvage Created 719 | 14 180 431 94 Parts 58 | 1 16 34 7 Haulers Intercepted . | . . . . Recyclers Shooed 2 | . . 2 . Parts Field Recycled . | . . . . Retrieved Matter . | . . . . Parts Self-Destructed 4 | . . . 4 Prevented . | . . . . Kills | -11 -10 -10 -10 ------- Run | Yrd Mat Min Sub Combat Hostiles Destroyed 19 | . 5 10 4 Guns 3 | . 1 . 2 AOE 16 | . 4 10 2 Classes Destroyed 10 | 1 5 3 1 Worker 3 | . 1 2 . Builder 8 | . 3 5 . Tunneler 2 | 1 . 1 . Recycler 4 | . . 4 . Mechanic 1 | . 1 . . Watcher 1 | . 1 . . Swarmer 6 | . . 6 . Grunt 7 | . 5 2 . Sentry 2 | . . 2 . Subdweller 4 | . . . 4 Best Kill Streak 8 | 1 8 5 2 Combat Bots Only 3 | . 3 3 2 Max Kills in Single Turn 2 | 1 2 2 1 Gunslinging . | . . . . Exploded 2 | . 1 2 1 Melee . | . . . . Uniques/NPCs Destroyed . | . . . . Combat | -11 -10 -10 -10 -------- Run | Yrd Mat Min Sub Hostile Shots Fired 68 | . 17 29 22 Missed 21 | . 6 12 3 Hits 47 | . 11 17 19 Projectile 47 | . 11 17 19 Damage Taken 976 | . 238 347 391 Core 271 | . 64 82 125 Absorbed by Shields . | . . . . Core Remaining (%) 100 | 100 . . . Volleys Fired 117 | 2 13 31 71 Largest 2 | 2 2 2 2 Hottest 60 | 40 60 60 50 Shots Fired 143 | 4 23 34 82 Gun 86 | 4 8 . 74 Cannon . | . . . . Launcher 57 | . 15 34 8 Special . | . . . . Kinetic 34 | 4 8 . 22 Thermal 52 | . . . 52 Explosive 57 | . 15 34 8 Electromagnetic . | . . . . Robot Hit Streak 12 | 2 7 11 12 Robot Miss Streak 2 | 2 2 1 2 Penetration Max . | . . . . Secondary Targets . | . . . . Shots Hit Robots 54 | 2 15 19 18 Core Hits 66 | 2 19 36 9 Critical Kills . | . . . . Critical Parts Destroyed 2 | . 1 . 1 Critical Strikes 2 | . 1 . 1 Destroy 2 | . 1 . 1 Melee Attacks . | . . . . Impact . | . . . . Slashing . | . . . . Piercing . | . . . . Sneak Attacks . | . . . . Combat Hostiles . | . . . . Follow-up Attacks . | . . . . Damage Inflicted 2689 | 28 775 1310 576 Guns 240 | 28 63 . 149 Cannons . | . . . . Explosions 2444 | . 712 1305 427 Melee . | . . . . Ramming 5 | . . 5 . Kinetic 240 | 28 63 . 149 Thermal . | . . . . Explosive 2444 | . 712 1305 427 Electromagnetic . | . . . . Impact . | . . . . Slashing . | . . . . Piercing . | . . . . Highest Corruption . | . . . . Average Corruption . | . . . . Corruption Purged . | . . . . Corruption Blocked . | . . . . Overload Shots . | . . . . Overflow Damage 33 | . . 33 . Projectiles . | . . . . Explosions 33 | . . 33 . Melee . | . . . . Knockbacks . | . . . . Impact . | . . . . Kinetic . | . . . . Secondary . | . . . . Self-Inflicted Damage 259 | . 119 140 . Shots 16 | . 8 8 . Rammed 4 | . . 4 . Targets Rammed 4 | . . 4 . Kicked . | . . . . Crushed . | . . . . Highest Temperature 18 | . 12 18 . Average Temperature 9 | . 6 10 . Received Heat Transfer 195 | . 72 72 51 Siege Activations . | . . . . Martial Activations . | . . . . Shielding Activations . | . . . . Robots Disrupted . | . . . . Combat Hostiles . | . . . . Robots Corrupted . | . . . . Combat Hostiles . | . . . . Parts Fried . | . . . . Impact Corruptions . | . . . . Robots Melted . | . . . . Combat Hostiles . | . . . . Parts Melted . | . . . . Heat Transferred . | . . . . Parts Sabotaged . | . . . . Parts Stolen . | . . . . Parts Stripped . | . . . . Power Chain Reactions . | . . . . Alert | -11 -10 -10 -10 ------- Run | Yrd Mat Min Sub Maximum Alert Level 1 | . 1 . . Low Security (%) 96 | 100 78 100 . Level 1 3 | . 21 . . Level 2 . | . . . . Level 3 . | . . . . Level 4 . | . . . . Level 5 . | . . . . High Security . | . . . . Max Security . | . . . . Peak Influence 218 | 5 218 152 . Initial 76 | . 3 76 . Average 87 | . 87 93 . Influence Increases 700 | 5 248 447 . Destroy 0b10 Robot/C 300 | . 100 200 . Destroy 0b10 Robot/NC 95 | 5 30 60 . Destroy Leader 52 | . 22 30 . Disable Machine 30 | . 15 15 . Destroy Structure 208 | . 66 142 . Lose Combat Pursuer 15 | . 15 . . Influence Decreases 700 | . 55 504 141 Entered New Map 198 | . 2 122 74 Time Decay 455 | . 53 362 40 Lost Part 47 | . . 20 27 Squads Dispatched 1 | . 1 . . Investigation . | . . . . Extermination . | . . . . Reinforcement 1 | . 1 . . Assault . | . . . . Garrison . | . . . . Intercept . | . . . . Searches Triggered . | . . . . Construction Impeded . | . . . . Haulers Reinforced . | . . . . Active Scanning Responses . | . . . . Cargo Convoy Interrupts . | . . . . Stealth | -11 -10 -10 -10 --------- Run | Yrd Mat Min Sub Distress Signals 2 | . 2 . . Communications Jammed . | . . . . Distress Signals . | . . . . Times Spotted 25 | . 9 10 6 Peak Tracking Total 5 | . 5 3 2 Tactical Retreats 1 | . 1 . . Traps | -11 -10 -10 -10 ------- Run | Yrd Mat Min Sub Traps Triggered . | . . . . Indirectly . | . . . . Trap Hack Attempts . | . . . . Triggered . | . . . . Disarmed . | . . . . Reprogrammed . | . . . . Reused . | . . . . Traps Extracted . | . . . . Installed . | . . . . Triggered . | . . . . Machines | -11 -10 -10 -10 ---------- Run | Yrd Mat Min Sub Machines Disabled 4 | . 1 3 . Max in Single Turn 1 | . 1 1 . Machines Repaired . | . . . . Machines Dismantled . | . . . . Machines Sabotaged . | . . . . Overloaded Fab Kills . | . . . . Hacking | -11 -10 -10 -10 --------- Run | Yrd Mat Min Sub Machines Accessed 1 | . . . 1 Terminals . | . . . . Fabricators . | . . . . Repair Stations . | . . . . Recycling Units . | . . . . Scanalyzers . | . . . . Garrison Access . | . . . . Total Hacks 3 | . . . 3 Successful 3 | . . . 3 Failed . | . . . . Catastrophic . | . . . . Database Lockouts . | . . . . Manual . | . . . . Terminals . | . . . . Fabricators . | . . . . Repair Stations . | . . . . Recycling Units . | . . . . Scanalyzers . | . . . . Garrison Access . | . . . . Terminal Hacks 3 | . . . 3 Record 3 | . . . 3 Fabricator Hacks . | . . . . Repair Station Hacks . | . . . . Recycling Unit Hacks . | . . . . Scanalyzer . | . . . . Garrison Access Hacks . | . . . . Unauthorized Hacks . | . . . . Terminals . | . . . . Fabricators . | . . . . Repair Stations . | . . . . Recycling Units . | . . . . Scanalyzers . | . . . . Garrison Access . | . . . . Data Cores Recovered . | . . . . Used . | . . . . Hacking Detections . | . . . . Full Trace Events . | . . . . Feedback Events . | . . . . Feedback Blocked . | . . . . Robot Schematics Acquired . | . . . . Robots Built . | . . . . Authchips . | . . . . Time . | . . . . Total Robot Build Rating . | . . . . Part Schematics Acquired . | . . . . Parts Built . | . . . . Authchips . | . . . . Time . | . . . . Total Part Build Rating . | . . . . Parts Repaired . | . . . . Time . | . . . . Parts Recycled . | . . . . Recycled Matter . | . . . . Retrieved Matter . | . . . . Retrieved Components . | . . . . Parts Scanalyzed . | . . . . Part Schematics Acquired . | . . . . Parts Damaged . | . . . . Bothacking | -11 -10 -10 -10 ------------ Run | Yrd Mat Min Sub Used RIF Installer . | . . . . Robots Hacked . | . . . . Non-combat . | . . . . Combat . | . . . . Robot Hacks Applied . | . . . . Relay Couplers Released . | . . . . Fabnet Peak Effective % . | . . . . Robots Rewired . | . . . . Allies Hacked . | . . . . Hacks Repelled . | . . . . Allies | -11 -10 -10 -10 -------- Run | Yrd Mat Min Sub Total Allies . | . . . . Largest Group . | . . . . Highest-Rated Group . | . . . . Highest-Rated Ally . | . . . . Total Orders . | . . . . Ally Attacks . | . . . . Total Damage . | . . . . Kills . | . . . . Allies Corrupted . | . . . . Allies Melted . | . . . . Intel | -11 -10 -10 -10 ------- Run | Yrd Mat Min Sub Active Infowar (turns) 955 | . . 654 301 Optics 210 | . . . 210 Sensors 745 | . . 654 91 Robot Analysis Total . | . . . . Derelict Logs Recovered 2 | . . 2 . Drone Launches . | . . . . Drone Recoveries . | . . . . Exploration | -11 -10 -10 -10 ------------- Run | Yrd Mat Min Sub Turns Passed 1798 | 59 171 836 732 Spaces Moved 1040 | 37 82 460 461 Core 421 | 13 . . 408 Treads 619 | 24 82 460 53 Legs . | . . . . Wheels . | . . . . Hover . | . . . . Flight . | . . . . Fastest Speed 50 | 50 160 160 50 Average Speed 139 | 121 160 160 115 Slowest Speed 350 | 160 160 160 350 Overloaded Moves . | . . . . Propulsion Burnouts . | . . . . Robots Hopped . | . . . . Potential Cave-ins . | . . . . Cave-ins Triggered . | . . . . Exploration Rate (%) 32 | 4 23 79 24 Regions Visited 3 Branch Regions 2 Pre-discovered Areas . | . . . . Known Exits Taken . | . . . . Unknown Exits Taken 3 | 1 1 1 . Scrap Searched 1 | . . 1 . Spaces Dug . | . . . . Terrain Destroyed 266 | . 72 177 17 Melee . | . . . . Projectile . | . . . . AOE 266 | . 72 177 17 Terrain Rammed . | . . . . Walls Destroyed . | . . . . Machines Disabled . | . . . . Actions | -11 -10 -10 -10 --------- Run | Yrd Mat Min Sub Total 1251 | 48 99 524 580 Wait 61 | . . 28 33 Move 1037 | 36 81 459 461 Hop . | . . . . Pick Up 14 | 5 3 1 5 Fast Attach . | . . . . Attach 10 | 5 . 1 4 Detach . | . . . . Swap 3 | . 2 . 1 Drop 3 | . . . 3 Fire 117 | 2 13 31 71 Melee . | . . . . Ram . | . . . . Kick . | . . . . Crush 4 | . . 4 . Escape Stasis . | . . . . Rewire . | . . . . Trap . | . . . . Miscellaneous 2 | . . . 2 Route ------- -11/Scrapyard -10/Materials -10/Mines (discovered 3 exits: [*Mat x2] / *Sub) -10/Subcaves History --------- Turn | Location | Event 3 | -11/Scrapyard | Discovered new exit (range 15) 60 | -11/Scrapyard | Entered Materials 164 | -10/Materials | Discovered new exit (range 16) 231 | -10/Materials | Entered Mines 246 | -10/Mines | Learned Materials emergency access door positions 312 | -10/Mines | Build established: Mutant 330 | -10/Mines | Discovered new exit (range 5) 409 | -10/Mines | Found a damaged Exp. Sensor Array with a note attached 412 | -10/Mines | Found Prototype Device 413 | -10/Mines | Identified Exp. Sensor Array 478 | -10/Mines | Found a hidden stash of uninstalled traps 695 | -10/Mines | Discovered new exit (range 4) 913 | -10/Mines | Core integrity fell below 50% 1010 | -10/Mines | Learned 4 Materials zone layouts 1057 | -10/Mines | Discovered new exit (range 5) 1067 | -10/Mines | Entered Subcaves 1163 | -10/Subcaves | Core integrity fell below 20% 1195 | -10/Subcaves | Lost 3 parts (2n1u) 1613 | -10/Subcaves | Visited Clippyterm 1616 | -10/Subcaves | Learned Factory trap positions 1799 | -10/Subcaves | Destroyed by ZJ-7PL(R) with Subdweller Beam Cannon Last Messages --------------- attempt to resurrect an ancient AI. I give up. There must be something fundamentally wrong with the algorithm, because no matter how much data I collect to feed it, half the time it still manages to suggest unhelpful sample queries and responses. --DD-NU8 >>Record "Banana Peels" It looks like you're afraid of the consquences of stepping on the wrong spot, would you like help? Data stored: Factory trap records. >>Record! "01-MTF" It looks like you're after the notorious thief from 0b1. I don't know where they are, but my data indicates that someone they're looking for is frequently seen in Scraptown. Connecting with Clippyterm... ZM-I14(u) deconstructs Twisted Machinery. Acquired 11 matter. Acquired 12 matter. Map ----- +----------------------------------------------------+ | ?????????????????????????????????????????????????? | | ?????????????????????????????????????????????????? | | ?????????????????????????????????????????????????? | | ?????????????????????????????????????????????????? | | ?????????????????????????????????????????????????? | | ?????????????????????????????????????????????????? | | ?????????????????????????????????????????????????? | | ?????????????????????????????????????????????????? | | ?????????????????????????????????????????????????? | | ?????????????????????????????????????????????????? | | ?????????????????????????????????????????????????? | | ?????????????????????????????????????????????????? | | ?????????????????????????????????????????????????? | | ?????????????????????????????????????????????????? | | ??????????????????????##??????????????#####???###? | | ??????????????????????? #????????????## ##### ## | | ???????????????????????R ###?????#???# | | ??????????????????????? R ##??? #???## | | ??????????????????????? ?? #????### ### | | ???????????????????????? #?# #??????####?### | | ???????????????????????? ## #?????????????### | | ???????????????????????? #???????????????? | | ???????????????????????? ?????????????????? | | ?????????????????????#### ???????????????????? | | ????????????????????## ## #????????????????????? | | ???????????????????## @ #???#???????????###### | | ???????????????????# ## #???????????#"""## | | ???????????????????## #???????????#"" ## | | ????????????????????## #???????????#"X | | ?????????????????????# # # #??????????#"" ## | | ?????????????????????# #### #??????????#"""## | | ????????????????????## ##? #??????????###### | | ???????????????????## #?? #???????????????# | | ???????????????????# ###?? #???????????????# | | ???????????????????## ###??? ##???????????????? | | ???????????????????## ##??? #????????????????? | | ??????????????????## ### #?? #????????????????? | | ??????????????????# #???##????????????????# | | ??????????????????# #????????????????????## | | ??????????????????## ####????????????????????# | | ???????????????????# ###???????????????????????# | | ???????????????????# #######??????????????????## | | ???????????????????# ##?????????????????# | | ???????????????????# ##????????????????# | | ???????????????????# ## #????????????????# | | ???????????????????# ###% ##???????????????# | | ???????????????????#* ### ##??????????????## | | ???????????????????# ## % #???????????????# | | ???????????????????# ## ##?????######????# | | ???????????????????###### ##????## ###### | +----------------------------------------------------+ Best States ------------- Heat Dissipation 25 Energy Generation 10 Energy Capacity 125 Matter Stores 283 Matter Capacity 300 Sight Range 21 Robot Scan Range 20 Terrain Scan Density 10 Armor Coverage 800 Evasion (%) 50 Recoil Reduction 2 Item Schematics ----------------- None Robot Schematics ------------------ None Fabricated ------------ Nothing Repaired ---------- Nothing Alien Tech Used ----------------- None Achievements -------------- None Challenges ------------ None Game ------ Seed ForceMagneticDrivehammer Manual? 0 Play Time 00:13:18 Cumulative 59.2 hours Start 2025.07.18 @ 10:39:32 End 2025.07.18 @ 10:48:50 Sessions 1 Manual Loads 0 Difficulty Rogue Special Mode None Game No. 254 Rogue 254 Adventurer 0 Explorer 0 Win Type - Total 0 Types 0/0/0/0/0/0/0/0/0/0 Lore% 39 Gallery% 30 Achievement% 25 Wizard Run 0 Options --------- Layout 2 ASCII 0 Keyboard 0 Movement Mouse Keybinds 0 Fullscreen 1 Font 24/Terminus Map View 50x44 Zoom Use 0% Tactical HUD 0 Map Filters NONE Filters NONE Steam 1 RUN: 6e5b2d66-819f-4bca-a4f1-09f3b87cc1f8